bitfinex-derivatives/quotes_BNBF0:USTF0_20250608
["timestamp","ask_amount","ask_price","bid_price","bid_amount"]
[1749395761520,1.395,651.76,651.2,2.28512286]
[1749395762121,1.395,651.76,651.21,2.28512286]
[1749395762421,1.395,651.76,651.23,2.28512286]
[1749395763020,1.395,651.76,651.43,2.28512286]
[1749395763428,1.395,651.76,651.46,2.28512286]
[1749395763925,1.395,651.76,651.51,2.28512286]
[1749395764426,1.395,651.76,651.5,2.28512286]
[1749395766323,1.395,651.76,651.49,2.28512286]
[1749395766826,1.395,651.76,651.5,2.28512286]
[1749395768328,1.395,651.76,651.52,2.28512286]
[1749395768522,1.395,651.76,651.03,3.83536224]
[1749395768523,1.395,651.76,651.51,2.28512286]
[1749395769424,1.395,651.76,651.5,2.28512286]
[1749395769825,1.395,651.76,651.49,2.28512286]
[1749395771528,1.395,651.76,651.48,2.28512286]
[1749395772428,1.395,651.76,651.45,2.28512286]
[1749395772827,1.395,651.76,651.47,2.28512286]
[1749395773426,1.395,651.76,651.46,2.28512286]
[1749395775327,1.395,651.76,651.45,2.28512286]
[1749395776132,1.395,651.76,651.46,2.28512286]
[1749395776433,1.395,651.76,651.45,2.28512286]
[1749395778233,1.395,651.76,651.46,2.28512286]
[1749395779537,1.395,651.76,651.48,2.28512286]
[1749395779737,1.395,651.76,651.49,2.28512286]
[1749395782338,1.395,651.76,651.53,2.28512286]
[1749395782538,1.395,651.76,651.52,2.28512286]
[1749395782940,1.395,651.76,651.49,2.28512286]
[1749395783137,1.395,651.76,651.52,2.28512286]
[1749395783336,1.395,651.76,651.51,2.28512286]
[1749395783740,1.395,651.76,651.52,2.28512286]
[1749395783938,1.395,651.76,651.02,3.83536224]
[1749395783939,1.395,651.76,651.51,2.28512286]
[1749395784137,1.395,651.76,651.52,2.28512286]
[1749395784338,1.395,651.76,651.53,2.28512286]
[1749395784542,1.395,651.76,651.52,2.28512286]
[1749395785143,1.395,651.76,651.53,2.28512286]
[1749395785341,1.395,651.76,651.04,3.83536224]
[1749395785342,1.395,651.76,651.52,2.28512286]
[1749395788646,1.395,651.76,651.51,2.28512286]
[1749395788946,1.395,651.76,651.52,2.28512286]
[1749395789442,1.395,651.76,651.51,2.28512286]
[1749395790343,1.395,651.76,651.5,2.28512286]
[1749395791342,1.395,651.76,651.51,2.28512286]
[1749395791542,1.395,651.76,651.5,2.28512286]
[1749395792043,1.395,651.76,651.51,2.28512286]
[1749395792243,1.395,651.76,651.5,2.28512286]
[1749395792544,1.395,651.76,651.42,2.28512286]
[1749395792943,1.395,651.76,651.44,2.28512286]
[1749395795550,1.395,651.76,651.45,2.28512286]
[1749395797550,0.26699709,652.01,651.45,2.28512286]
[1749395799753,0.26699709,652.01,651.43,2.28512286]
[1749395799952,0.26699709,652.01,651.42,2.28512286]
[1749395800252,1.35,652.0,651.42,2.28512286]
[1749395801758,1.35,652.0,651.43,2.28512286]
[1749395801958,1.35,652.0,651.42,2.28512286]
[1749395802156,1.35,652.0,651.49,2.28512286]
[1749395802455,1.35,652.0,651.08,0.26699709]
[1749395802456,1.35,652.0,651.5,2.28512286]
[1749395803656,1.35,652.0,651.51,2.28512286]
[1749395804061,1.35,652.0,651.5,2.28512286]
[1749395804257,1.35,652.0,651.49,2.28512286]
[1749395804461,1.35,652.0,651.38,2.28512286]
[1749395804660,1.35,652.0,651.39,2.28512286]
[1749395805361,1.35,652.0,651.41,2.28512286]
[1749395806759,1.35,652.0,651.25,2.28512286]
[1749395807859,1.35,652.0,651.14,2.28512286]
[1749395808066,1.35,652.0,651.15,0.30714889]
[1749395808261,1.35,652.0,651.15,2.59227175]
[1749395808764,1.35,652.0,651.15,0.30714889]
[1749395813169,1.35,652.0,651.15,2.59227175]
[1749395813468,1.35,652.0,651.17,2.28512286]
[1749395813670,1.35,652.0,651.28,2.28512286]
[1749395814068,1.35,652.0,651.3,2.28512286]
[1749395814366,1.35,652.0,651.33,2.28512286]
[1749395814569,1.35,652.0,651.32,2.28512286]
[1749395815369,1.35,652.0,651.34,2.28512286]
[1749395816366,1.35,652.0,651.35,2.28512286]
[1749395816569,1.35,652.0,651.36,2.28512286]
[1749395817267,1.35,652.0,651.37,2.28512286]
[1749395818471,1.35,652.0,651.38,2.28512286]
[1749395819370,1.35,652.0,651.39,2.28512286]
[1749395821274,0.26699709,652.01,651.39,2.28512286]
[1749395821474,0.26699709,652.01,651.4,2.28512286]
[1749395822175,0.26699709,652.01,651.47,2.28512286]
[1749395823176,0.26699709,652.01,651.56,2.28512286]
[1749395823575,0.26699709,652.01,651.59,2.28512286]
[1749395824473,1.025,652.0,651.59,2.28512286]
[1749395827877,1.025,652.0,651.36,2.28512286]
[1749395828076,1.025,652.0,651.33,2.28512286]
[1749395830078,1.025,652.0,651.32,2.28512286]
[1749395831478,1.025,652.0,651.31,2.28512286]
[1749395831878,1.025,652.0,651.3,2.28512286]
[1749395833381,1.025,652.0,651.31,2.28512286]
[1749395833779,1.025,652.0,651.34,2.28512286]
[1749395834587,1.025,652.0,651.43,2.28512286]
[1749395835884,1.025,652.0,651.5,2.28512286]
[1749395837887,1.025,652.0,651.53,2.28512286]
[1749395838485,0.26699709,652.01,651.53,2.28512286]
[1749395840491,0.26699709,652.01,651.3,2.28512286]
[1749395840685,0.26699709,652.01,651.29,2.28512286]
[1749395841088,0.26699709,652.01,651.27,2.28512286]
[1749395841385,1.495,652.0,651.26,2.28512286]
[1749395841585,1.495,652.0,651.24,2.28512286]
[1749395842289,1.495,652.0,651.25,2.28512286]
[1749395842591,1.495,652.0,651.3,2.28512286]
[1749395843386,1.495,652.0,651.29,2.28512286]
[1749395843688,1.495,652.0,651.28,2.28512286]
[1749395844089,1.495,652.0,651.27,2.28512286]
[1749395845388,1.495,652.0,651.28,2.28512286]
[1749395845591,1.495,652.0,651.27,2.28512286]
[1749395846489,2.54117962,652.0,651.26,2.28512286]
[1749395846687,1.04617962,651.99,651.26,2.28512286]
[1749395847186,1.495,652.0,651.27,2.28512286]
[1749395847391,1.495,652.0,651.26,2.28512286]
[1749395848692,1.495,652.0,651.25,2.28512286]
[1749395849394,1.495,652.0,651.26,2.28512286]
[1749395849594,1.495,652.0,651.25,2.28512286]
[1749395850492,1.495,652.0,651.26,2.28512286]
[1749395850792,1.495,652.0,651.25,2.28512286]
[1749395850995,1.495,652.0,651.27,2.28512286]
[1749395851195,1.495,652.0,651.28,2.28512286]
[1749395851693,1.495,652.0,651.27,2.28512286]
[1749395852293,1.495,652.0,651.28,2.28512286]
[1749395853100,1.495,652.0,651.26,2.28512286]
[1749395853697,2.54117962,652.0,651.26,2.28512286]
[1749395853901,1.04617962,651.99,651.26,2.28512286]
[1749395854401,1.495,652.0,651.25,2.28512286]
[1749395854698,1.495,652.0,651.26,2.28512286]
[1749395857101,1.495,652.0,651.25,2.28512286]
[1749395857396,1.495,652.0,651.26,2.28512286]
[1749395857601,1.495,652.0,651.25,2.28512286]
[1749395857797,1.495,652.0,651.24,2.28512286]
[1749395859603,1.495,652.0,651.18,0.30713474]
[1749395860003,1.495,652.0,651.19,2.28512286]
[1749395860201,1.495,652.0,651.2,2.28512286]
[1749395860403,1.495,652.0,651.21,2.28512286]
[1749395860806,1.495,652.0,651.38,1.52076355]
[1749395861001,1.495,652.0,651.39,1.52076355]
[1749395861905,1.495,652.0,651.34,1.52076355]
[1749395862404,1.495,652.0,651.35,1.52076355]
[1749395862701,1.495,652.0,651.36,1.52076355]
[1749395863704,1.495,652.0,651.37,1.52076355]
[1749395864806,1.495,652.0,651.38,1.52076355]
[1749395865004,1.495,652.0,651.4,1.52076355]
[1749395865408,0.26699709,652.01,651.4,1.52076355]
[1749395866405,0.26699709,652.01,651.41,1.52076355]
[1749395867209,0.26699709,652.01,651.42,1.52076355]
[1749395867409,0.26699709,652.01,651.44,1.52076355]
[1749395868411,1.135,652.0,651.44,1.52076355]
[1749395868605,1.135,652.0,651.45,1.52076355]
[1749395871205,1.135,652.0,651.44,1.52076355]
[1749395871815,1.135,652.0,651.52,1.52076355]
[1749395872211,1.135,652.0,651.51,1.52076355]
[1749395872518,1.135,652.0,651.52,1.52076355]
[1749395874414,1.135,652.0,651.51,1.52076355]
[1749395874613,1.135,652.0,651.49,1.52076355]
[1749395875719,1.135,652.0,651.53,1.52076355]
[1749395876212,1.135,652.0,651.41,2.28512286]
[1749395876213,1.135,652.0,651.52,1.52076355]
[1749395876513,1.135,652.0,651.51,1.52076355]
[1749395877413,1.135,652.0,651.52,1.52076355]
[1749395878620,1.135,652.0,651.53,1.52076355]
[1749395880922,1.135,652.0,651.33,1.52076355]
[1749395883422,1.135,652.0,651.34,1.52076355]
[1749395885028,1.135,652.0,651.18,0.30713474]
[1749395885029,1.135,652.0,651.35,1.52076355]
[1749395885227,1.135,652.0,651.34,1.52076355]
[1749395885523,1.135,652.0,651.35,1.52076355]
[1749395889129,1.135,652.0,651.36,1.52076355]
[1749395889626,1.135,652.0,651.35,1.52076355]
[1749395890733,1.135,652.0,651.5,1.52076355]
[1749395891535,1.135,652.0,651.49,1.52076355]
[1749395892130,1.135,652.0,651.58,1.52076355]
[1749395899539,1.135,652.0,651.6,1.52076355]
[1749395900243,1.135,652.0,651.51,2.28512286]
[1749395900445,1.135,652.0,651.53,2.28512286]
[1749395900641,1.135,652.0,651.55,2.28512286]
[1749395901241,1.135,652.0,651.66,1.52533714]
[1749395901445,1.135,652.0,651.67,1.52533714]
[1749395902143,1.135,652.0,651.65,1.52533714]
[1749395902548,0.26699709,652.01,651.65,1.52533714]
[1749395902848,0.26699709,652.01,651.18,0.30713474]
[1749395902849,0.26699709,652.01,651.66,1.52533714]
[1749395903449,0.26699709,652.01,651.55,2.28512286]
[1749395906149,1.123,652.0,651.55,2.28512286]
[1749395907847,1.123,652.0,651.51,2.28512286]
[1749395908350,1.123,652.0,651.5,2.28512286]
[1749395908544,1.123,652.0,651.51,2.28512286]
[1749395911650,1.123,652.0,651.63,1.52561088]
[1749395911849,1.123,652.0,651.65,1.52561088]
[1749395913046,1.123,652.0,651.66,1.52561088]
[1749395913351,1.123,652.0,651.65,1.52561088]
[1749395913646,1.123,652.0,651.66,1.52561088]
[1749395915551,1.123,652.0,651.67,1.52561088]
[1749395915949,1.123,652.0,651.55,2.28512286]
[1749395916854,1.123,652.0,651.56,2.28512286]
[1749395917653,1.123,652.0,651.55,2.28512286]
[1749395917853,1.123,652.0,651.53,2.28512286]
[1749395919653,1.123,652.0,651.52,2.28512286]
[1749395919852,1.123,652.0,651.51,2.28512286]
[1749395920656,2.15170347,652.0,651.51,2.28512286]
[1749395920852,1.02870347,651.99,651.51,2.28512286]
[1749395921152,1.123,652.0,651.64,1.52815724]
[1749395924957,1.123,652.0,651.63,1.52815724]
[1749395925459,1.123,652.0,651.62,1.52815724]
[1749395926659,1.123,652.0,651.61,1.52815724]
[1749395927556,1.123,652.0,651.63,1.52815724]
[1749395929559,1.123,652.0,651.64,1.52815724]
[1749395929763,1.123,652.0,651.65,1.52815724]
[1749395931364,1.123,652.0,651.66,1.52815724]
[1749395931861,1.123,652.0,651.62,1.52815724]
[1749395934467,1.123,652.0,651.44,1.52815724]
[1749395934863,1.123,652.0,651.42,1.52815724]
[1749395935364,1.123,652.0,651.41,1.52815724]
[1749395935564,1.123,652.0,651.28,1.52815724]
[1749395936363,1.123,652.0,651.2,1.52815724]
[1749395937267,1.123,652.0,651.19,1.52815724]
[1749395937568,1.123,652.0,651.18,0.30713474]
[1749395938564,1.123,652.0,650.98,1.52815724]
[1749395938768,1.123,652.0,650.99,1.52815724]
[1749395938967,1.123,652.0,651.04,1.52815724]
[1749395939162,1.123,652.0,651.03,1.52815724]
[1749395939563,1.123,652.0,651.16,1.52815724]
[1749395940163,1.123,652.0,651.25,1.52815724]
[1749395940363,1.123,652.0,651.26,1.52815724]
[1749395941470,1.123,652.0,651.32,1.52815724]
[1749395941667,1.123,652.0,651.34,1.52815724]
[1749395943071,0.26699709,652.01,651.34,1.52815724]
[1749395943669,0.26699709,652.01,651.33,1.52815724]
[1749395945170,0.26699709,652.01,651.16,2.28512286]
[1749395945171,0.26699709,652.01,651.32,1.52815724]
[1749395946175,1.416,652.0,651.32,1.52815724]
[1749395947476,1.416,652.0,651.31,1.52815724]
[1749395949376,1.416,652.0,651.35,1.52815724]
[1749395949677,1.416,652.0,651.34,1.52815724]
[1749395950078,1.416,652.0,651.35,1.52815724]
[1749395950379,1.416,652.0,651.34,1.52815724]
[1749395951278,1.416,652.0,651.38,1.52815724]
[1749395951876,1.416,652.0,651.31,1.52815724]
[1749395952575,1.416,652.0,651.32,1.52815724]
[1749395952880,1.416,652.0,651.31,1.52815724]
[1749395953280,1.416,652.0,651.32,1.52815724]
[1749395955377,1.416,652.0,651.33,1.52815724]
[1749395955677,1.416,652.0,651.32,1.52815724]
[1749395956984,1.416,652.0,651.33,1.52815724]
[1749395957182,1.416,652.0,651.34,1.52815724]
[1749395957482,1.416,652.0,651.33,1.52815724]
[1749395957778,1.416,652.0,651.34,1.52815724]
[1749395957977,1.416,652.0,651.33,1.52815724]
[1749395959377,1.416,652.0,651.34,1.52815724]
[1749395960078,0.26699709,652.01,651.34,1.52815724]
[1749395960882,0.26699709,652.01,651.33,1.52815724]
[1749395961182,0.26699709,652.01,651.34,1.52815724]
[1749395961578,0.26699709,652.01,651.44,1.52815724]
[1749395961783,0.26699709,652.01,651.45,1.52815724]
[1749395963384,1.42,652.0,651.45,1.52815724]
[1749395965880,1.42,652.0,651.46,1.52815724]
[1749395966084,1.42,652.0,651.47,1.52815724]
[1749395966283,1.42,652.0,651.46,1.52815724]
[1749395966682,1.42,652.0,651.47,1.52815724]
[1749395966883,1.42,652.0,651.43,1.52815724]
[1749395968581,1.42,652.0,651.44,1.52815724]
[1749395971389,1.42,652.0,651.45,1.52815724]
[1749395971886,1.42,652.0,651.46,1.52815724]
[1749395972788,1.42,652.0,651.47,1.52815724]
[1749395973185,1.42,652.0,651.48,1.52815724]
[1749395975189,1.42,652.0,651.49,1.52815724]
[1749395976193,1.42,652.0,651.5,1.52815724]
[1749395976999,1.42,652.0,651.55,1.52815724]
[1749395977197,1.42,652.0,651.56,1.52815724]
[1749395977792,1.42,652.0,651.55,1.52815724]
[1749395977996,1.42,652.0,651.56,1.52815724]
[1749395978894,1.42,652.0,651.57,1.52815724]
[1749395979394,1.42,652.0,651.46,2.28512286]
[1749395979395,0.26699709,652.01,651.56,1.52815724]
[1749395980201,0.26699709,652.01,650.99,3.83536224]
[1749395980202,0.26699709,652.01,651.57,1.52815724]
[1749395980497,0.26699709,652.01,651.58,1.52815724]
[1749395982099,0.26699709,652.01,651.59,1.52815724]
[1749395982700,1.238,652.0,651.59,1.52815724]
[1749395982901,1.238,652.0,651.6,1.52815724]
[1749395987104,0.26699299,651.91,651.6,1.52815724]
[1749395989507,0.26699299,651.91,651.61,1.52815724]
[1749395995511,0.26699299,651.91,651.62,1.52815724]
[1749395996618,0.26699299,651.91,651.61,1.52815724]
[1749395996914,0.26699299,651.91,651.43,1.52815724]
[1749395999418,0.26699299,651.91,651.44,1.52815724]
[1749396001320,0.26699299,651.91,651.45,1.52815724]
[1749396001517,0.26699299,651.91,651.47,1.52815724]
[1749396002115,0.26699299,651.91,651.46,1.52815724]
[1749396002319,0.26699299,651.91,651.47,1.52815724]
[1749396002618,0.26699299,651.91,651.46,1.52815724]
[1749396005921,0.26699299,651.91,651.59,1.52815724]
[1749396007521,0.26699299,651.91,651.58,1.52815724]
[1749396008625,0.26699299,651.91,651.59,1.52815724]
[1749396009026,0.26699299,651.91,651.58,1.52815724]
[1749396009723,0.26699299,651.91,651.59,1.52815724]
[1749396010126,0.26699299,651.91,651.58,1.52815724]
[1749396011327,0.26699299,651.91,651.59,1.52815724]
[1749396011526,0.26699299,651.91,651.6,1.52815724]
[1749396012628,0.26699299,651.91,651.58,1.52815724]
[1749396013527,0.26699299,651.91,651.59,1.52815724]
[1749396014324,0.26699299,651.91,651.6,1.52815724]
[1749396014726,0.26699299,651.91,651.59,1.52815724]
[1749396015931,0.26699299,651.91,651.61,1.52815724]
[1749396017429,0.26699299,651.91,651.6,1.52815724]
[1749396017628,0.26699299,651.91,651.61,1.52815724]
[1749396020629,0.26699299,651.91,651.62,1.52815724]
[1749396021430,0.26699299,651.91,651.43,1.52815724]
[1749396022530,0.26699299,651.91,651.31,1.52815724]
[1749396022930,0.26699299,651.91,651.32,1.52815724]
[1749396023131,0.26699299,651.91,651.31,1.52815724]
[1749396023337,0.26699299,651.91,651.26,1.52815724]
[1749396023536,0.26699299,651.91,651.25,1.52815724]
[1749396024434,0.26699299,651.91,651.2,1.52815724]
[1749396025130,0.26699299,651.91,651.21,1.52815724]
[1749396025433,0.26699299,651.91,651.17,1.52815724]
[1749396026031,0.26699299,651.91,651.18,1.52815724]
[1749396026232,0.26699299,651.91,651.2,1.52815724]
[1749396026437,0.26699299,651.91,651.27,1.52815724]
[1749396026634,0.26699299,651.91,651.51,1.52815724]
[1749396027737,0.26699299,651.91,651.52,1.52815724]
[1749396029135,0.26699299,651.91,651.55,1.52815724]
[1749396029337,0.26699299,651.91,651.57,1.52815724]
[1749396029835,0.26699299,651.91,651.58,1.52815724]
[1749396030039,0.26699299,651.91,651.61,1.52815724]
[1749396031240,0.26699299,651.91,651.05,3.83536224]
[1749396031241,0.26699299,651.91,651.48,1.52815724]
[1749396033240,0.26699299,651.91,651.49,1.52815724]
[1749396033737,1.237,651.9,651.49,1.52815724]
[1749396034542,1.237,651.9,651.47,1.52815724]
[1749396035136,1.237,651.9,651.48,1.52815724]
[1749396041239,1.237,651.9,651.54,1.52815724]
[1749396041941,1.237,651.9,651.56,1.52815724]
[1749396044242,1.237,651.9,651.57,1.52815724]
[1749396044445,1.237,651.9,651.6,1.52815724]
[1749396044645,1.237,651.9,651.61,1.52815724]
[1749396044840,1.237,651.9,651.62,1.52815724]
[1749396045045,1.237,651.9,651.65,1.52815724]
[1749396045740,1.237,651.9,651.66,1.52815724]
[1749396047446,1.237,651.9,651.56,2.28512286]
[1749396048250,1.237,651.9,651.57,2.28512286]
[1749396054053,1.237,651.9,651.56,2.28512286]
[1749396054753,1.237,651.9,651.33,2.28512286]
[1749396055049,1.237,651.9,651.34,2.28512286]
[1749396061057,1.237,651.9,651.33,2.28512286]
[1749396062060,1.237,651.9,651.32,2.28512286]
[1749396063057,1.237,651.9,651.34,2.28512286]
[1749396063261,1.237,651.9,651.35,2.28512286]
[1749396065563,1.237,651.9,651.34,2.28512286]
[1749396065860,1.237,651.9,651.35,2.28512286]
[1749396066557,1.237,651.9,651.34,2.28512286]
[1749396066958,1.237,651.9,651.33,2.28512286]
[1749396067161,1.237,651.9,651.29,2.28512286]
[1749396067759,1.237,651.9,651.31,2.28512286]
[1749396068060,1.237,651.9,651.3,2.28512286]
[1749396068263,1.237,651.9,651.31,2.28512286]
[1749396070768,1.237,651.9,651.3,2.28512286]
[1749396071068,1.237,651.9,651.25,2.28512286]
[1749396072972,1.237,651.9,651.33,2.28512286]
[1749396075765,1.237,651.9,651.36,2.28512286]
[1749396077072,1.237,651.9,651.38,2.28512286]
[1749396077269,1.237,651.9,651.39,2.28512286]
[1749396080877,1.237,651.9,651.51,2.28512286]
[1749396081173,1.237,651.9,651.52,2.28512286]
[1749396083378,1.237,651.9,651.53,2.28512286]
[1749396085582,1.237,651.9,651.55,2.28512286]
[1749396085778,1.237,651.9,651.56,2.28512286]
[1749396086179,1.237,651.9,651.57,2.28512286]
[1749396086379,1.237,651.9,651.58,2.28512286]
[1749396087580,1.237,651.9,651.59,2.28512286]
[1749396087976,1.237,651.9,651.27,2.28512286]
[1749396089079,1.237,651.9,651.07,2.28512286]
[1749396089277,1.237,651.9,651.08,2.28512286]
[1749396089482,1.237,651.9,651.07,2.28512286]
[1749396089679,1.02904875,651.97,651.07,2.28512286]
[1749396089882,1.02904875,651.99,651.07,2.28512286]
[1749396090080,1.02904875,651.98,651.0,2.28512286]
[1749396090281,1.02904875,651.97,651.01,0.30721494]
[1749396090480,1.02904875,651.99,651.01,0.30721494]
[1749396090680,1.02904875,651.98,651.01,2.5923378]
[1749396090879,1.02904875,651.99,651.03,2.28512286]
[1749396091082,1.02904875,651.98,651.01,0.30721494]
[1749396091283,1.02904875,651.97,651.01,0.30721494]
[1749396091480,1.02904875,651.96,651.01,0.30721494]
[1749396091680,1.02904875,651.99,651.04,2.28512286]
[1749396092080,0.2669848,652.0,651.04,2.28512286]
[1749396092081,0.2669848,652.0,651.06,2.28512286]
[1749396092282,0.2669848,652.0,651.05,2.28512286]
[1749396092890,1.335,651.99,651.05,2.28512286]
[1749396094492,1.335,651.99,651.04,2.59232364]
[1749396094887,1.335,651.99,651.05,2.28512286]
[1749396095084,1.335,651.99,651.12,2.28512286]
[1749396095583,1.335,651.99,651.31,2.28512286]
[1749396095988,1.335,651.99,651.32,2.28512286]
[1749396096989,1.335,651.99,651.34,2.28512286]
[1749396097890,1.335,651.99,651.33,2.28512286]
[1749396099485,1.335,651.99,651.35,2.28512286]
[1749396099686,1.335,651.99,651.34,2.28512286]
[1749396099885,1.335,651.99,651.39,2.28512286]
[1749396100786,1.335,651.99,651.42,2.28512286]
[1749396101490,1.335,651.99,651.52,2.28512286]
[1749396102191,1.335,651.99,651.53,2.28512286]
[1749396104588,1.335,651.99,651.52,2.28512286]
[1749396105292,1.335,651.99,651.53,2.28512286]
[1749396108190,1.335,651.99,651.52,2.28512286]
[1749396108395,1.335,651.99,651.53,2.28512286]
[1749396108591,1.335,651.99,651.52,2.28512286]
[1749396109294,1.335,651.99,651.43,2.28512286]
[1749396110296,1.335,651.99,651.39,2.28512286]
[1749396111692,1.335,651.99,651.38,2.28512286]
[1749396113297,1.335,651.99,651.37,2.28512286]
[1749396117897,1.335,651.99,651.38,2.28512286]
[1749396119194,1.335,651.99,651.42,2.28512286]
[1749396119496,1.335,651.99,651.39,2.28512286]
[1749396119696,1.335,651.99,651.4,2.28512286]
[1749396119898,1.335,651.99,651.41,2.28512286]
[1749396120700,1.335,651.99,651.42,2.28512286]
[1749396121395,1.335,651.99,651.41,2.28512286]
[1749396122099,1.335,651.99,651.42,2.28512286]
[1749396123098,1.335,651.99,651.39,2.28512286]
[1749396124002,1.335,651.99,651.4,2.28512286]
[1749396125899,1.335,651.99,651.43,2.28512286]
[1749396127197,1.335,651.99,651.45,2.28512286]
[1749396129105,1.335,651.99,651.47,2.28512286]
[1749396129499,1.335,651.99,651.48,2.28512286]
[1749396130105,1.335,651.99,651.49,2.28512286]
[1749396130405,1.335,651.99,651.48,2.28512286]
[1749396131706,1.335,651.99,651.49,2.28512286]
[1749396132409,1.335,651.99,651.05,0.30719606]
[1749396132410,1.335,651.99,651.48,2.28512286]
[1749396132708,1.335,651.99,651.49,2.28512286]
[1749396133013,1.335,651.99,651.24,2.28512286]
[1749396133810,1.335,651.99,651.23,2.28512286]
[1749396134112,1.335,651.99,651.08,2.28512286]
[1749396134312,1.335,651.99,651.09,0.30717719]
[1749396136009,2.36937179,651.99,651.09,0.30717719]
[1749396136310,1.03437179,651.98,651.09,0.30717719]
[1749396136915,1.335,651.99,651.11,2.28512286]
[1749396137115,1.335,651.99,651.17,2.28512286]
[1749396138013,1.335,651.99,651.18,2.28512286]
[1749396139213,1.335,651.99,651.17,2.28512286]
[1749396139414,1.335,651.99,651.19,2.28512286]
[1749396139611,1.335,651.99,651.3,2.28512286]
[1749396139815,1.335,651.99,651.13,2.28512286]
[1749396141117,1.335,651.99,651.12,2.28512286]
[1749396142014,1.335,651.99,651.13,2.28512286]
[1749396143021,1.335,651.99,651.15,2.28512286]
[1749396143922,1.335,651.99,651.12,2.28512286]
[1749396144219,1.335,651.99,651.13,2.28512286]
[1749396145419,1.335,651.99,651.12,2.28512286]
[1749396145818,2.36937179,651.99,651.12,2.28512286]
[1749396146019,1.03437179,651.98,651.12,2.28512286]
[1749396146423,1.335,651.99,651.12,2.28512286]
[1749396146819,1.335,651.99,651.13,2.28512286]
[1749396147624,1.335,651.99,651.14,2.28512286]
[1749396147820,0.2669848,652.0,651.13,2.28512286]
[1749396148123,0.2669848,652.0,651.11,2.59229061]
[1749396148621,0.2669848,652.0,651.26,2.28512286]
[1749396148921,0.2669848,652.0,651.11,0.30716775]
[1749396148922,0.2669848,652.0,651.25,2.28512286]
[1749396149819,0.2669848,652.0,651.26,2.28512286]
[1749396150421,0.2669848,652.0,651.29,2.28512286]
[1749396150822,1.35,651.99,651.29,2.28512286]
[1749396152825,1.35,651.99,651.38,2.28512286]
[1749396154531,1.35,651.99,651.39,2.28512286]
[1749396155829,1.35,651.99,651.4,2.28512286]
[1749396157834,1.35,651.99,651.39,2.28512286]
[1749396158032,1.35,651.99,651.45,2.28512286]
[1749396158532,1.35,651.99,651.46,2.28512286]
[1749396159733,1.35,651.99,651.44,2.28512286]
[1749396160036,1.35,651.99,651.46,2.28512286]
[1749396160237,1.35,651.99,651.48,2.28512286]
[1749396161937,1.35,651.99,651.5,2.28512286]
[1749396169644,1.35,651.99,651.52,2.28512286]
[1749396171141,1.35,651.99,651.53,2.28512286]
[1749396172240,1.35,651.99,651.36,2.28512286]
[1749396179944,1.35,651.99,651.37,2.28512286]
[1749396182045,1.35,651.99,651.52,2.28512286]
[1749396182245,1.35,651.99,651.51,2.28512286]
[1749396183042,1.35,651.99,651.52,2.28512286]
[1749396184150,1.35,651.99,651.41,2.28512286]
[1749396186746,0.2669848,652.0,651.45,2.28512286]
[1749396186947,0.2669848,652.0,651.5,2.28512286]
[1749396187852,0.2669848,652.0,651.51,2.28512286]
[1749396189349,0.988,651.99,651.5,2.28512286]
[1749396190151,0.988,651.99,651.41,2.28512286]
[1749396190354,0.988,651.99,651.4,2.28512286]
[1749396193654,0.988,651.99,651.44,2.28512286]
[1749396194059,0.988,651.99,651.43,2.28512286]
[1749396194756,0.988,651.99,651.42,2.28512286]
[1749396195562,0.988,651.99,651.43,2.28512286]
[1749396196159,0.988,651.99,651.44,2.28512286]
[1749396196463,0.988,651.99,651.43,2.28512286]
[1749396197961,0.988,651.99,651.44,2.28512286]
[1749396198360,0.988,651.99,651.43,2.28512286]
[1749396199567,0.988,651.99,651.44,2.28512286]
[1749396199863,0.988,651.99,651.58,2.28512286]
[1749396200269,0.988,651.99,651.57,2.28512286]
[1749396201563,0.988,651.99,651.11,0.30716775]